bitfinex-derivatives/quotes_BNBF0:USTF0_20250401
["timestamp","ask_amount","ask_price","bid_price","bid_amount"]
[1743482368272,0.30186193,609.6,607.78,1.96406643]
[1743482368567,0.30186193,609.59,607.78,1.96406643]
[1743482368870,0.30186193,609.58,607.78,1.96406643]
[1743482369071,0.30186193,609.57,607.78,1.96406643]
[1743482369272,0.30186193,609.56,607.78,1.96406643]
[1743482369573,0.30186193,609.55,607.78,1.96406643]
[1743482369769,0.30186193,609.6,607.78,1.96406643]
[1743482369970,0.30186193,609.59,607.78,1.96406643]
[1743482370175,0.30186193,609.58,607.78,1.96406643]
[1743482370372,0.30186193,609.57,607.78,1.96406643]
[1743482370575,0.30186193,609.56,607.78,1.96406643]
[1743482370772,0.30186193,609.57,607.78,1.96406643]
[1743482371074,0.30186193,609.56,607.78,1.96406643]
[1743482371269,0.30186193,609.55,607.78,1.96406643]
[1743482371468,0.30186193,609.57,607.78,1.96406643]
[1743482371672,0.30186193,609.56,607.78,1.96406643]
[1743482372070,0.30186193,609.55,607.78,1.96406643]
[1743482372273,0.30186193,609.57,607.78,1.96406643]
[1743482372573,0.28588563,609.58,607.78,1.96406643]
[1743482372574,0.30186193,609.56,607.78,1.96406643]
[1743482372773,0.30186193,609.55,607.78,1.96406643]
[1743482372975,0.30186193,609.54,607.78,1.96406643]
[1743482373175,0.30186193,609.53,607.78,1.96406643]
[1743482373374,0.30186193,609.61,607.78,1.96406643]
[1743482373575,0.2858915,609.53,607.78,1.96406643]
[1743482373875,0.30186193,609.52,607.78,1.96406643]
[1743482374078,0.30186193,609.51,607.78,1.96406643]
[1743482376476,0.28590324,609.5,607.78,1.96406643]
[1743482376882,0.30186193,609.49,607.78,1.96406643]
[1743482378282,2.51448526,609.38,607.78,1.96406643]
[1743482378483,0.30186193,609.37,607.78,1.96406643]
[1743482379486,0.28591969,609.36,607.78,1.96406643]
[1743482379789,0.30186193,609.35,607.78,1.96406643]
[1743482381990,0.28591969,609.36,607.78,1.96406643]
[1743482382191,0.30186746,609.35,607.78,1.96406643]
[1743482382486,0.30186746,609.34,607.78,1.96406643]
[1743482385493,0.28592321,609.33,607.78,1.96406643]
[1743482388294,2.51448526,609.38,607.78,1.96406643]
[1743482388687,0.28591969,609.32,607.78,1.96406643]
[1743482391100,2.51448526,609.38,607.78,1.96406643]
[1743482391699,0.28591969,609.37,607.78,1.96406643]
[1743482394199,2.51448526,609.38,607.78,1.96406643]
[1743482394499,0.28592908,609.36,607.78,1.96406643]
[1743482395294,0.30187261,609.35,607.78,1.96406643]
[1743482397402,0.30187261,609.37,607.78,1.96406643]
[1743482397703,0.28593143,609.34,607.78,1.96406643]
[1743482397903,0.30187261,609.33,607.78,1.96406643]
[1743482400510,0.28593378,609.32,607.78,1.96406643]
[1743482400808,0.30187261,609.31,607.78,1.96406643]
[1743482403310,0.30187261,609.3,607.78,1.96406643]
[1743482403609,0.30187261,609.29,607.78,1.96406643]
[1743482405510,0.28593613,609.3,607.78,1.96406643]
[1743482405811,0.3018682,609.29,607.78,1.96406643]
[1743482406411,0.3018682,609.37,607.78,1.96406643]
[1743482406614,0.28593848,609.28,607.78,1.96406643]
[1743482406911,0.3018682,609.27,607.78,1.96406643]
[1743482407106,0.28593143,609.27,607.78,1.96406643]
[1743482407307,0.3018682,609.26,607.78,1.96406643]
[1743482408918,0.30186794,609.25,607.78,1.96406643]
[1743482409113,0.30186794,609.26,607.78,1.96406643]
[1743482409412,0.58780995,609.25,607.78,1.96406643]
[1743482409614,0.30186794,609.24,607.78,1.96406643]
[1743482412413,0.30186794,609.23,607.78,1.96406643]
[1743482412618,0.28594436,609.23,607.78,1.96406643]
[1743482412816,0.30186794,609.22,607.78,1.96406643]
[1743482413724,0.28594436,609.23,607.78,1.96406643]
[1743482415319,2.51448526,609.38,607.78,1.96406643]
[1743482415520,0.28592908,609.22,607.78,1.96406643]
[1743482415913,2.51448526,609.38,607.78,1.96406643]
[1743482416220,0.28593026,609.21,607.78,1.96406643]
[1743482416421,2.51448526,609.38,607.78,1.96406643]
[1743482416618,0.30186565,609.37,607.78,1.96406643]
[1743482416816,0.28593026,609.2,607.78,1.96406643]
[1743482417018,2.51448526,609.38,607.78,1.96406643]
[1743482417215,0.30186565,609.37,607.78,1.96406643]
[1743482417421,0.28593026,609.19,607.78,1.96406643]
[1743482417621,2.51448526,609.38,607.78,1.96406643]
[1743482417820,0.30186794,609.37,607.78,1.96406643]
[1743482418023,0.28593026,609.18,607.78,1.96406643]
[1743482418222,2.51448526,609.38,607.78,1.96406643]
[1743482418625,0.28593026,609.17,607.78,1.96406643]
[1743482418821,2.51448526,609.38,607.78,1.96406643]
[1743482419223,0.28592908,609.16,607.78,1.96406643]
[1743482419425,2.51448526,609.38,607.78,1.96406643]
[1743482419925,0.28592908,609.15,607.78,1.96406643]
[1743482420129,2.51448526,609.38,607.78,1.96406643]
[1743482420326,0.28592908,609.37,607.78,1.96406643]
[1743482421129,2.51448526,609.38,607.78,1.96406643]
[1743482421528,0.28592908,609.36,607.78,1.96406643]
[1743482424131,2.51448526,609.38,607.78,1.96406643]
[1743482424433,0.28592908,609.35,607.78,1.96406643]
[1743482427242,2.51448526,609.38,607.78,1.96406643]
[1743482427443,0.28591969,609.34,607.78,1.96406643]
[1743482428343,0.30185717,609.33,607.78,1.96406643]
[1743482430446,0.58777333,609.32,607.78,1.96406643]
[1743482430645,0.30185717,609.31,607.78,1.96406643]
[1743482433046,0.28591616,609.32,607.78,1.96406643]
[1743482433249,0.30184319,609.31,607.78,1.96406643]
[1743482433447,0.30184319,609.37,607.78,1.96406643]
[1743482433649,0.28591499,609.31,607.78,1.96406643]
[1743482436343,2.51448526,609.38,607.78,1.96406643]
[1743482436548,0.28591499,609.3,607.78,1.96406643]
[1743482436748,2.51448526,609.38,607.78,1.96406643]
[1743482436948,0.30183652,609.37,607.78,1.96406643]
[1743482437148,0.28591616,609.29,607.78,1.96406643]
[1743482437447,2.51448526,609.38,607.78,1.96406643]
[1743482437641,0.28591616,609.28,607.78,1.96406643]
[1743482438144,2.51448526,609.38,607.78,1.96406643]
[1743482438344,0.28591499,609.27,607.78,1.96406643]
[1743482438546,2.51448526,609.38,607.78,1.96406643]
[1743482438746,0.30183644,609.37,607.78,1.96406643]
[1743482438947,0.28591616,609.26,607.78,1.96406643]
[1743482439351,2.51448526,609.38,607.78,1.96406643]
[1743482439649,0.28590324,609.25,607.78,1.96406643]
[1743482440247,2.51448526,609.38,607.78,1.96406643]
[1743482440443,0.28590324,609.24,607.78,1.96406643]
[1743482440844,2.51448526,609.38,607.78,1.96406643]
[1743482441048,0.28589855,609.23,607.78,1.96406643]
[1743482441449,2.51448526,609.38,607.78,1.96406643]
[1743482441649,0.28590559,609.22,607.78,1.96406643]
[1743482442049,2.51448526,609.38,607.78,1.96406643]
[1743482442252,0.28590559,609.21,607.78,1.96406643]
[1743482442552,2.51448526,609.38,607.78,1.96406643]
[1743482443045,0.28590677,609.2,607.78,1.96406643]
[1743482443249,2.51448526,609.38,607.78,1.96406643]
[1743482443451,0.58773369,609.37,607.78,1.96406643]
[1743482443746,0.30182816,609.36,607.78,1.96406643]
[1743482445351,2.51448526,609.38,607.78,1.96406643]
[1743482445545,0.30183269,609.37,607.78,1.96406643]
[1743482445749,0.28591264,609.35,607.78,1.96406643]
[1743482448254,2.51448526,609.38,607.78,1.96406643]
[1743482448454,0.30183474,609.37,607.78,1.96406643]
[1743482448655,0.58774973,609.37,607.78,1.96406643]
[1743482448855,0.30183474,609.36,607.78,1.96406643]
[1743482451450,0.28591616,609.35,607.78,1.96406643]
[1743482451852,0.30183474,609.34,607.78,1.96406643]
[1743482452451,0.28591616,609.35,607.78,1.96406643]
[1743482452659,0.30183712,609.34,607.78,1.96406643]
[1743482453558,0.28591616,609.35,607.78,1.96406643]
[1743482454561,0.30184232,609.34,607.78,1.96406643]
[1743482457560,0.28591851,609.33,607.78,1.96406643]
[1743482457758,0.30184232,609.32,607.78,1.96406643]
[1743482458361,0.30183726,609.31,607.78,1.96406643]
[1743482458562,0.30183726,609.3,607.78,1.96406643]
[1743482458760,0.30183726,609.32,607.78,1.96406643]
[1743482458961,0.30183726,609.31,607.78,1.96406643]
[1743482459263,0.30183726,609.3,607.78,1.96406643]
[1743482459465,0.30183726,609.32,607.78,1.96406643]
[1743482459664,0.30183726,609.31,607.78,1.96406643]
[1743482459965,0.30183726,609.3,607.78,1.96406643]
[1743482460264,2.51448526,609.38,607.78,1.96406643]
[1743482460265,0.30183726,609.29,607.78,1.96406643]
[1743482460466,0.28592086,609.29,607.78,1.96406643]
[1743482463268,2.51448526,609.38,607.78,1.96406643]
[1743482463461,0.30182522,609.37,607.78,1.96406643]
[1743482463665,0.28590794,609.28,607.78,1.96406643]
[1743482463867,2.51448526,609.38,607.78,1.96406643]
[1743482464067,0.28590912,609.27,607.78,1.96406643]
[1743482464465,2.51448526,609.38,607.78,1.96406643]
[1743482464667,0.28590794,609.26,607.78,1.96406643]
[1743482464966,2.51448526,609.38,607.78,1.96406643]
[1743482465163,0.30182357,609.37,607.78,1.96406643]
[1743482465364,0.28590912,609.25,607.78,1.96406643]
[1743482465560,2.51448526,609.38,607.78,1.96406643]
[1743482465862,0.28590912,609.24,607.78,1.96406643]
[1743482466265,2.51448526,609.38,607.78,1.96406643]
[1743482466565,0.28590794,609.23,607.78,1.96406643]
[1743482466961,2.51448526,609.38,607.78,1.96406643]
[1743482467163,0.30182765,609.37,607.78,1.96406643]
[1743482467362,0.28590794,609.22,607.78,1.96406643]
[1743482467566,2.51448526,609.38,607.78,1.96406643]
[1743482467763,0.3018217,609.37,607.78,1.96406643]
[1743482467968,0.28590794,609.21,607.78,1.96406643]
[1743482468169,2.51448526,609.38,607.78,1.96406643]
[1743482468369,0.28589855,609.2,607.78,1.96406643]
[1743482468765,2.51448526,609.38,607.78,1.96406643]
[1743482468962,0.2858868,609.19,607.78,1.96406643]
[1743482469368,2.51448526,609.38,607.78,1.96406643]
[1743482469568,0.28588446,609.18,607.78,1.96406643]
[1743482469967,2.51448526,609.38,607.78,1.96406643]
[1743482470169,0.28588446,609.17,607.78,1.96406643]
[1743482470472,2.51448526,609.38,607.78,1.96406643]
[1743482470770,0.28588446,609.16,607.78,1.96406643]
[1743482471172,2.51448526,609.38,607.78,1.96406643]
[1743482471365,0.28588446,609.15,607.78,1.96406643]
[1743482471563,2.51448526,609.38,607.78,1.96406643]
[1743482471869,0.28588446,609.14,607.78,1.96406643]
[1743482472270,2.51448526,609.38,607.78,1.96406643]
[1743482472669,0.28588446,609.13,607.78,1.96406643]
[1743482472866,2.51448526,609.38,607.78,1.96406643]
[1743482473068,0.28588446,609.12,607.78,1.96406643]
[1743482473470,2.51448526,609.38,607.78,1.96406643]
[1743482473767,0.28588446,609.11,607.78,1.96406643]
[1743482473971,2.51448526,609.38,607.78,1.96406643]
[1743482474370,0.28588446,609.1,607.78,1.96406643]
[1743482474670,2.51448526,609.38,607.78,1.96406643]
[1743482474970,0.28588446,609.09,607.78,1.96406643]
[1743482475365,2.51448526,609.38,607.78,1.96406643]
[1743482475565,0.28588446,609.08,607.78,1.96406643]
[1743482475871,2.51448526,609.38,607.78,1.96406643]
[1743482476264,0.28588446,609.07,607.78,1.96406643]
[1743482476465,2.51448526,609.38,607.78,1.96406643]
[1743482476771,0.28588446,609.06,607.78,1.96406643]
[1743482477169,2.51448526,609.38,607.78,1.96406643]
[1743482477369,0.28588446,609.05,607.78,1.96406643]
[1743482477871,2.51448526,609.38,607.78,1.96406643]
[1743482478070,0.28588446,609.04,607.78,1.96406643]
[1743482478268,2.51448526,609.38,607.78,1.96406643]
[1743482478672,0.28588446,609.03,607.78,1.96406643]
[1743482478866,2.51448526,609.38,607.78,1.96406643]
[1743482479268,0.28588446,609.02,607.78,1.96406643]
[1743482479471,2.51448526,609.38,607.78,1.96406643]
[1743482479774,0.28588446,609.01,607.78,1.96406643]
[1743482480166,2.51448526,609.38,607.78,1.96406643]
[1743482480368,0.28588446,609.0,607.78,1.96406643]
[1743482480771,2.51448526,609.38,607.78,1.96406643]
[1743482481074,0.28588446,608.99,607.78,1.96406643]
[1743482481272,2.51448526,609.38,607.78,1.96406643]
[1743482481568,0.28587036,608.98,607.78,1.96406643]
[1743482482073,2.51448526,609.38,607.78,1.96406643]
[1743482482373,0.28587036,608.97,607.78,1.96406643]
[1743482482570,2.51448526,609.38,607.78,1.96406643]
[1743482482771,0.28587036,608.96,607.78,1.96406643]
[1743482483172,2.51448526,609.38,607.78,1.96406643]
[1743482483474,0.28587036,608.95,607.78,1.96406643]
[1743482483672,2.51448526,609.38,607.78,1.96406643]
[1743482484073,0.28587036,608.95,607.78,1.96406643]
[1743482484273,2.51448526,609.38,607.78,1.96406643]
[1743482484668,0.28587036,608.95,607.78,1.96406643]
[1743482484873,2.51448526,609.38,607.78,1.96406643]
[1743482485273,0.28587036,608.95,607.78,1.96406643]
[1743482485473,2.51448526,609.38,607.78,1.96406643]
[1743482485774,0.28587036,608.95,607.78,1.96406643]
[1743482486176,2.51448526,609.38,607.78,1.96406643]
[1743482486374,0.28588446,608.94,607.78,1.96406643]
[1743482486675,2.51448526,609.38,607.78,1.96406643]
[1743482486976,0.28588446,608.93,607.78,1.96406643]
[1743482487272,2.51448526,609.38,607.78,1.96406643]
[1743482487475,0.30176376,609.37,607.78,1.96406643]
[1743482487668,0.28588446,608.92,607.78,1.96406643]
[1743482487871,2.51448526,609.38,607.78,1.96406643]
[1743482488070,0.30176616,609.37,607.78,1.96406643]
[1743482488267,0.28588563,608.91,607.78,1.96406643]
[1743482488468,2.51448526,609.38,607.78,1.96406643]
[1743482488674,0.30176609,609.37,607.78,1.96406643]
[1743482488976,0.28588446,608.9,607.78,1.96406643]
[1743482489175,2.51448526,609.38,607.78,1.96406643]
[1743482489375,0.28588446,609.36,607.78,1.96406643]
[1743482490277,2.51448526,609.38,607.78,1.96406643]
[1743482490471,0.28588446,609.35,607.78,1.96406643]
[1743482493177,2.51448526,609.38,607.78,1.96406643]
[1743482493377,0.30176237,609.37,607.78,1.96406643]
[1743482493580,0.58764683,609.37,607.78,1.96406643]
[1743482493780,0.30176237,609.36,607.78,1.96406643]
[1743482494580,0.28588446,609.37,607.78,1.96406643]
[1743482494881,0.30176211,609.36,607.78,1.96406643]
[1743482496477,0.30176211,609.35,607.78,1.96406643]
[1743482496678,0.28588446,609.35,607.78,1.96406643]
[1743482502283,2.51448526,609.38,607.78,1.96406643]
[1743482502483,0.28588446,609.34,607.78,1.96406643]
[1743482505179,2.51448526,609.38,607.78,1.96406643]
[1743482505382,0.30176237,609.37,607.78,1.96406643]
[1743482505583,0.28588446,609.33,607.78,1.96406643]
[1743482506080,0.28588446,609.33,607.78,3.77876992]
[1743482506485,0.28588446,609.33,607.78,6.44051086]
[1743482506685,0.28588446,609.33,607.79,1.81470349]
[1743482506877,0.28588446,609.33,607.81,0.32905019]
[1743482508184,2.51350552,609.52,607.81,0.32905019]
[1743482508385,0.30176039,609.51,607.81,0.32905019]
[1743482508584,0.28586802,609.32,607.81,0.32905019]
[1743482508785,2.51350552,609.54,607.81,0.32905019]
[1743482509080,0.28586919,609.31,607.81,0.32905019]
[1743482509483,2.51350552,609.54,607.81,0.32905019]
[1743482509681,0.28586802,609.3,607.81,0.32905019]
[1743482510187,2.51350552,609.59,607.81,0.32905019]
[1743482510386,0.28586097,609.29,607.81,0.89705019]
[1743482510685,2.51350552,609.59,607.81,1.56105019]
[1743482510884,0.28585745,609.28,607.81,1.56105019]
[1743482511083,0.28585745,609.28,607.81,1.96505019]
[1743482511281,2.51350552,609.58,607.81,1.96505019]
[1743482511586,0.28585628,609.27,607.81,1.96505019]
[1743482511885,2.51350552,609.58,607.81,1.96505019]
[1743482512081,0.28585862,609.26,607.81,1.96505019]
[1743482512487,2.51350552,609.58,607.81,1.96505019]
[1743482512782,0.28585745,609.25,607.81,1.96505019]
[1743482512987,2.51350552,609.61,607.81,1.96505019]
[1743482513185,0.30176289,609.6,607.81,1.96505019]
[1743482513385,0.28585862,609.24,607.81,1.96505019]
[1743482513584,2.51350552,609.61,607.81,1.96505019]
[1743482513780,0.3017613,609.6,607.81,1.96505019]
[1743482513984,0.2858551,609.23,607.81,1.96505019]
[1743482514186,2.51350552,609.61,607.81,1.96505019]
[1743482514385,0.30176289,609.6,607.81,1.96505019]
[1743482514585,0.2858551,609.22,607.81,1.96505019]
[1743482514789,2.51350552,609.61,607.81,1.96505019]
[1743482515082,0.2858551,609.21,607.81,1.96505019]
[1743482515484,2.51350552,609.61,607.81,1.96505019]
[1743482515687,0.3017631,609.6,607.81,1.96505019]
[1743482515882,0.28585393,609.2,607.81,1.96505019]
[1743482516087,2.51350552,609.64,607.81,1.96505019]
[1743482516388,0.28585393,609.19,607.81,1.96505019]
[1743482516689,2.84157874,609.62,607.81,1.96505019]
[1743482516887,0.30176283,609.61,607.81,1.96505019]
[1743482517190,0.28585393,609.18,607.81,1.96505019]
[1743482517389,2.84157874,609.62,607.81,1.96505019]
[1743482517691,0.28585275,609.6,607.81,1.96505019]
[1743482517884,0.30176316,609.59,607.81,1.96505019]
[1743482518287,2.51350552,609.54,607.81,1.96505019]
[1743482518488,0.30176316,609.53,607.81,1.96505019]
[1743482519092,0.30176285,609.52,607.81,1.96505019]
[1743482519390,0.30176285,609.51,607.81,1.96505019]
[1743482519593,0.30176289,609.5,607.81,1.96505019]
[1743482519787,0.30176289,609.53,607.81,1.96505019]
[1743482520487,0.28586215,609.52,607.81,1.96505019]
[1743482520691,0.30176289,609.51,607.81,1.96505019]
[1743482522087,2.81526841,609.51,607.81,1.96505019]
[1743482522293,0.30176289,609.5,607.81,1.96505019]
[1743482523593,0.58762576,609.49,607.81,3.77975368]
[1743482523792,0.30176009,609.48,607.81,3.77975368]
[1743482524595,0.30176009,609.48,607.81,1.96505019]
[1743482525896,0.30176009,609.48,607.81,3.77975368]
[1743482526498,0.58762811,609.47,607.81,6.44149462]
[1743482526698,0.30176009,609.46,607.82,1.81470349]
[1743482526998,0.30176009,609.46,607.84,0.32903395]
[1743482529501,0.58763045,609.45,607.84,0.32903395]
[1743482529700,0.30176009,609.44,607.84,0.32903395]
[1743482529901,0.30176141,609.43,607.84,0.32903395]
[1743482530096,0.30176141,609.42,607.84,0.32903395]
[1743482530302,0.30176141,609.44,607.85,0.664]
[1743482530504,0.30176141,609.43,607.87,0.32901771]
[1743482530701,0.30176141,609.42,607.87,0.32901771]
[1743482530904,0.30176141,609.41,607.87,0.32901771]
[1743482531202,0.30176141,609.4,607.87,0.32901771]
[1743482531400,0.30176141,609.44,607.87,0.32901771]
[1743482532398,0.30176141,609.43,607.87,0.32901771]
[1743482532595,0.30176141,609.42,607.87,0.32901771]
[1743482532998,0.28585628,609.43,607.87,0.32901771]
[1743482532999,0.30176106,609.41,607.87,0.32901771]
[1743482533202,0.30176106,609.4,607.87,0.32901771]
[1743482533397,0.30176106,609.39,607.87,0.32901771]
[1743482533597,0.30176106,609.42,607.87,0.32901771]
[1743482533795,0.30176106,609.41,607.87,0.32901771]
[1743482533997,0.30176106,609.4,607.87,0.32901771]
[1743482534195,0.30176106,609.39,607.87,0.32901771]
[1743482534402,0.28585628,609.43,607.88,0.404]
[1743482534599,0.30175894,609.42,607.9,0.32900148]
[1743482535406,0.30175894,609.56,607.9,0.32900148]
[1743482535602,0.28586684,609.41,607.9,0.32900148]
[1743482535807,0.30175894,609.4,607.9,0.32900148]
[1743482536107,0.30176099,609.39,607.9,0.32900148]
[1743482538411,0.30176099,609.57,607.9,0.32900148]
[1743482539011,0.28584923,609.56,607.9,0.32900148]
[1743482539212,0.30176099,609.55,607.9,0.32900148]
[1743482539413,2.81526651,609.55,607.9,0.32900148]
[1743482539612,0.30176099,609.54,607.9,0.32900148]
[1743482541108,2.81526651,609.54,607.9,0.32900148]
[1743482541311,0.30176099,609.53,607.9,0.32900148]
[1743482541508,0.58761492,609.53,607.9,0.32900148]
[1743482541813,0.30176099,609.52,607.9,0.32900148]
[1743482543417,0.30176099,609.52,607.9,0.89700148]
[1743482543813,0.28585393,609.53,607.9,0.89700148]
[1743482544015,0.30176039,609.52,607.9,0.89700148]
[1743482547118,0.30176111,609.51,607.9,0.89700148]
[1743482547419,0.30176111,609.5,607.9,0.89700148]
[1743482547713,0.30176111,609.49,607.9,0.89700148]
[1743482547918,0.30176111,609.48,607.9,0.89700148]
[1743482548119,0.30176111,609.47,607.9,0.89700148]
[1743482548318,0.30176111,609.5,607.9,0.89700148]
[1743482548513,0.30176111,609.49,607.9,0.89700148]
[1743482548715,0.30176111,609.5,607.9,0.89700148]
[1743482548915,0.30176111,609.49,607.9,0.89700148]
[1743482549111,0.30176111,609.48,607.9,0.89700148]
[1743482549313,0.30176111,609.47,607.9,0.89700148]
[1743482549517,0.30176111,609.46,607.9,0.89700148]
[1743482549718,0.30176111,609.45,607.9,0.89700148]
[1743482549920,0.28585275,609.51,607.9,0.89700148]
[1743482550318,0.30176086,609.5,607.9,0.89700148]
[1743482550520,0.30176086,609.49,607.9,0.89700148]
[1743482551821,0.28584219,609.5,607.9,0.89700148]
[1743482553319,0.32807322,609.62,607.9,0.89700148]
[1743482553524,0.28584219,609.49,607.9,0.89700148]
[1743482553919,0.32807322,609.62,607.9,0.89700148]
[1743482554223,0.28584336,609.48,607.9,0.89700148]
[1743482554422,0.32807322,609.62,607.9,0.89700148]
[1743482554618,0.30176078,609.61,607.9,0.89700148]
[1743482554919,0.28584336,609.47,607.9,0.89700148]
[1743482555224,0.32807322,609.62,607.9,0.89700148]
[1743482555419,0.28584219,609.6,607.9,0.89700148]
[1743482555621,0.30176104,609.59,607.9,0.89700148]
[1743482556423,0.30176104,609.61,607.9,0.89700148]
[1743482556618,0.28584454,609.58,607.9,0.89700148]
[1743482556822,0.30176104,609.57,607.9,0.89700148]
[1743482560429,0.30176104,609.57,607.9,1.30100148]
[1743482562533,0.30176104,609.56,607.9,1.30100148]
[1743482562725,0.30176104,609.55,607.9,1.30100148]
[1743482565527,0.58761027,609.54,607.9,1.30100148]
[1743482565726,0.30176104,609.53,607.9,1.30100148]
[1743482568435,0.30176104,609.52,607.9,1.30100148]
[1743482568733,0.30176104,609.51,607.9,1.30100148]
[1743482569133,0.28583749,609.52,607.9,1.30100148]
[1743482569333,0.30174265,609.51,607.9,1.30100148]
[1743482571537,0.28583984,609.5,607.9,1.30100148]
[1743482571729,0.30174265,609.49,607.9,1.30100148]
[1743482574337,0.32807322,609.62,607.9,1.30100148]
[1743482574542,0.28583397,609.48,607.9,1.30100148]
[1743482574938,2.84157874,609.62,607.9,1.30100148]
[1743482575138,0.28582223,609.47,607.9,1.30100148]
[1743482575538,2.84157874,609.62,607.9,1.30100148]
[1743482575738,0.28582223,609.46,607.9,1.30100148]
[1743482576139,2.84157874,609.62,607.9,1.30100148]
[1743482576332,0.28582223,609.45,607.9,1.30100148]
[1743482576833,0.32807322,609.62,607.9,1.30100148]
[1743482577141,0.28582223,609.44,607.9,1.30100148]
[1743482577335,0.32807322,609.62,607.9,1.30100148]
[1743482577534,0.28582223,609.43,607.9,1.30100148]
[1743482578035,0.32807322,609.62,607.9,1.30100148]
[1743482578241,0.28582106,609.42,607.9,1.30100148]
[1743482578441,0.32807322,609.62,607.9,1.30100148]
[1743482578839,0.28582223,609.41,607.9,1.30100148]
[1743482579334,0.32807322,609.62,607.9,1.30100148]
[1743482579541,0.28582223,609.4,607.9,1.30100148]
[1743482579841,0.32807322,609.62,607.9,1.30100148]
[1743482580041,0.28582223,609.39,607.9,1.30100148]
[1743482580541,0.32807322,609.62,607.9,1.30100148]
[1743482580741,0.28582106,609.38,607.9,1.30100148]
[1743482580941,0.32807322,609.62,607.9,1.30100148]
[1743482581139,0.30172439,609.61,607.9,1.30100148]
[1743482581339,0.28582223,609.37,607.9,1.30100148]
[1743482581539,0.32807322,609.62,607.9,1.30100148]
[1743482581843,0.28582223,609.36,607.9,1.30100148]
[1743482582341,0.32807322,609.62,607.9,1.30100148]
[1743482582542,0.28582223,609.35,607.9,1.30100148]
[1743482582745,0.32807322,609.62,607.9,1.30100148]
[1743482583242,0.28582106,609.34,607.9,1.96500148]
[1743482583444,0.32807322,609.62,607.9,1.96500148]
[1743482583644,0.28582106,609.33,607.9,1.96500148]
[1743482584042,0.32807322,609.62,607.9,1.96500148]
[1743482584239,0.28582106,609.32,607.9,1.96500148]
[1743482584639,0.32807322,609.62,607.9,1.96500148]
[1743482584944,0.28582106,609.31,607.9,1.96500148]
[1743482585145,0.32807322,609.62,607.9,1.96500148]
[1743482585539,0.28582106,609.3,607.9,1.96500148]
[1743482585739,0.32807322,609.62,607.9,1.96500148]
[1743482586145,0.28582106,609.29,607.9,1.96500148]
[1743482586340,0.32807322,609.62,607.9,1.96500148]
[1743482586744,0.28582106,609.28,607.9,1.96500148]
[1743482587145,0.32807322,609.62,607.9,1.96500148]
[1743482587343,0.28582106,609.27,607.9,1.96500148]
[1743482587746,0.32807322,609.62,607.9,1.96500148]
[1743482587942,0.28582106,609.26,607.9,1.96500148]
[1743482588349,0.32807322,609.62,607.9,1.96500148]
[1743482588542,0.28582106,609.25,607.9,1.96500148]
[1743482588945,0.32807322,609.62,607.9,1.96500148]
[1743482589145,0.28582106,609.24,607.9,1.96500148]
[1743482589448,0.32807322,609.62,607.9,1.96500148]
[1743482589851,0.28582106,609.23,607.9,1.96500148]
[1743482590246,0.32807322,609.62,607.9,1.96500148]
[1743482590446,0.28582106,609.22,607.9,1.96500148]
[1743482590855,0.32807322,609.62,607.9,1.96500148]
[1743482591057,0.28582106,609.21,607.9,1.96500148]
[1743482591355,0.32807322,609.62,607.9,1.96500148]
[1743482591756,0.28582106,609.2,607.9,1.96500148]
[1743482591952,0.32807322,609.62,607.9,1.96500148]
[1743482592157,0.30172038,609.61,607.9,1.96500148]
[1743482592358,0.28582106,609.19,607.9,1.96500148]
[1743482592757,0.32807322,609.62,607.9,1.96500148]
[1743482592954,0.28582223,609.18,607.9,1.96500148]
[1743482593458,0.32807322,609.62,607.9,1.96500148]
[1743482593759,0.28582223,609.17,607.9,1.96500148]
[1743482594059,0.32807322,609.62,607.9,1.96500148]
[1743482594360,0.28582223,609.16,607.9,1.96500148]
[1743482594557,0.32807322,609.62,607.9,1.96500148]
[1743482594757,0.28582223,609.15,607.9,1.96500148]
[1743482595159,0.32807322,609.62,607.9,1.96500148]
[1743482595355,0.28582106,609.14,607.9,1.96500148]
[1743482595756,0.32807322,609.62,607.9,1.96500148]
[1743482595957,0.28582106,609.13,607.9,1.96500148]
[1743482596357,0.32807322,609.62,607.9,1.96500148]
[1743482596554,0.28582106,609.12,607.9,1.96500148]
[1743482596857,0.32807322,609.62,607.9,1.96500148]
[1743482597062,0.30174011,609.61,607.9,1.96500148]
[1743482597261,0.28582223,609.11,607.9,1.96500148]
[1743482597562,0.32807322,609.62,607.9,1.96500148]
[1743482597762,0.28582223,609.1,607.9,1.96500148]
[1743482598160,0.32807322,609.62,607.9,1.96500148]
[1743482598358,0.2858281,609.09,607.9,1.96500148]
[1743482598757,0.32807322,609.62,607.9,1.96500148]
[1743482598958,0.28582927,609.08,607.9,1.96500148]
[1743482599263,0.32807322,609.62,607.9,1.96500148]
[1743482599457,0.30174102,609.61,607.9,1.96500148]
[1743482599663,0.28582927,609.07,607.9,1.96500148]
[1743482599862,0.32807322,609.62,607.9,1.96500148]
[1743482600061,0.30174118,609.61,607.9,1.96500148]
[1743482600257,0.28582927,609.06,607.9,1.96500148]
[1743482600461,0.32807322,609.62,607.9,1.96500148]
[1743482600657,0.30174005,609.61,607.9,1.96500148]
[1743482600863,0.28582927,609.05,607.9,1.96500148]
[1743482601064,0.32807322,609.62,607.9,1.96500148]
[1743482601264,0.30174058,609.61,607.9,1.96500148]
[1743482601464,0.28582927,609.04,607.9,1.96500148]